[Event "Krakow Championship-B 2022"]
[Site "Krakow"]
[Date "2022.06.26"]
[Round "3.11"]
[White "Evenshaug, Amadeus Hestvik"]
[Black "Cichon, Bartlomiej"]
[Result "0-1"]
[ECO "B23"]
[WhiteElo "1785"]
[BlackElo "1895"]
[Annotator "NA RC"]
[PlyCount "90"]
[EventDate "2022.06.25"]
[EventType "swiss"]
[EventCountry "POL"]
[SourceTitle "playchess.com"]
[Source "ChessBase"]
[SourceQuality "1"]
[TimeControl "40/5400+30:1800+30"]

1. e4 {[%emt 0:04:27]} c5 {[%emt 0:00:07]} 2. Nc3 {[%emt 0:00:06]} a6 {[%emt 0:00:05]} 3. f4 {[%emt 0:00:11]} b5 {[%emt 0:00:29]} 4. Nf3 {[%emt 0:00:16]} Bb7 {[%emt 0:02:02]} 5. d3 {[%emt 0:00:28]} e6 {[%emt 0:00:59]} 6. a4 {[%emt 0:05:39]} b4 {[%emt 0:01:48]} 7. Ne2 {[%emt 0:01:04]} d5 {[%emt 0:02:36]} 8. e5 {[%emt 0:03:24]} h5 {[%emt 0:03:29]} 9. h4 {[%emt 0:02:27]} Nh6 {[%emt 0:01:32]} 10. Ng3 {[%emt 0:01:26]} g6 {[%emt 0:01:16]} 11. Be2 {[%emt 0:05:30]} Nc6 {[%emt 0:08:48]} 12. c3 {[%emt 0:10:38]} bxc3 {[%emt 0:11:13]} 13. bxc3 {[%emt 0:00:14]} d4 {[%emt 0:01:20]} 14. Ne4 {[%emt 0:14:28]} Be7 {[%emt 0:05:44]} 15. c4 {[%emt 0:03:00]} Nb4 {[%emt 0:04:37]} 16. Neg5 {[%emt 0:12:30]} a5 {[%emt 0:05:38]} 17. O-O {[%emt 0:01:27]} Nf5 {[%emt 0:01:21]} 18. Kh2 {[%emt 0:03:54]} Rb8 {[%emt 0:02:53]} 19. g3 {[%emt 0:05:07]} Bc6 {[%emt 0:00:27]} 20. Kh3 {[%emt 0:05:39]} Qd7 {[%emt 0:07:37]} 21. Bd2 {[%emt 0:02:48]} Rd8 {[%emt 0:02:27]} 22. Ra3 {[%emt 0:02:38]} Kf8 {[%emt 0:04:21]} 23. Rf2 {[%emt 0:01:40]} Kg7 {[%emt 0:01:20]} 24. Bf1 {[%emt 0:05:01]} Bxg5 {[%emt 0:04:39]} 25. Nxg5 {[%emt 0:01:25]} Ne3 {[%emt 0:01:00]} 26. Bxe3 {[%emt 0:00:51]} dxe3 {[%emt 0:00:06]} 27. Rh2 {[%emt 0:01:33]} Qd4 {[%emt 0:01:48]} 28. Qb3 {[%emt 0:01:37]} Rd7 {[%emt 0:01:50]} 29. Qc3 {[%emt 0:01:19]} Rhd8 {[%emt 0:05:24]} 30. Qe1 {[%emt 0:02:23]} e2 {[%emt 0:05:59]} 31. Qxe2 {[%emt 0:01:14]} Nxd3 {[%emt 0:00:30]} 32. Qc2 {[%emt 0:01:00]} Qe3 {[%emt 0:01:51]} 33. Bxd3 {[%emt 0:00:33]} Rxd3 {[%emt 0:00:14]} 34. Rxd3 {[%emt 0:00:47]} Rxd3 {[%emt 0:00:42]} 35. Qf2 {[%emt 0:00:05]} Qc1 {[%emt 0:06:15]} 36. Qe2 {[%emt 0:00:54]} Qxc4 {[%emt 0:00:21]} 37. Rf2 {[%emt 0:00:21]} Qb3 {[%emt 0:00:54]} 38. Rg2 {[%emt 0:00:46]} Bxg2+ {[%emt 0:00:26]} 39. Qxg2 {[%emt 0:00:04]} Qxa4 {[%emt 0:00:48]} 40. Ne4 {[%emt 0:00:47]} Qc6 {[%emt 0:01:24]} 41. Qe2 {[%emt 0:30:31]} Rd4 {[%emt 0:31:31]} 42. Nf2 {[%emt 0:00:00]} Qd5 {[%emt 0:00:00]} 43. Qe3 {[%emt 0:00:00]} a4 {[%emt 0:00:00]} 44. Kh2 {[%emt 0:00:00]} Rd2 {[%emt 0:00:00]} 45. Kh3 {[%emt 0:00:00]} Qd4 {[%emt 0:00:00]} 0-1

[Event "Krakow Championship-B 2022"]
[Site "Krakow"]
[Date "2022.06.26"]
[Round "3.12"]
[White "Marciniak, Leonard"]
[Black "Spanton, Tim R"]
[Result "1/2-1/2"]
[ECO "D07"]
[WhiteElo "1799"]
[BlackElo "1860"]
[Annotator "NA RC"]
[PlyCount "113"]
[EventDate "2022.06.25"]
[EventType "swiss"]
[EventCountry "POL"]
[SourceTitle "playchess.com"]
[Source "ChessBase"]
[SourceQuality "1"]
[TimeControl "40/5400+30:1800+30"]

1. d4 {[%emt 0:00:04]} d5 {[%emt 0:00:06]} 2. c4 {[%emt 0:00:08]} Nc6 {[%emt 0:00:05]} 3. Nf3 {[%emt 0:02:57]} Bg4 {[%emt 0:00:09]} 4. Nbd2 {[%emt 0:03:43]} dxc4 {[%emt 0:02:52]} 5. Qa4 {[%emt 0:01:28]} Qd7 {[%emt 0:00:39]} 6. Qxc4 {[%emt 0:02:41]} O-O-O {[%emt 0:02:27]} 7. e3 {[%emt 0:03:52]} e5 {[%emt 0:00:38]} 8. dxe5 {[%emt 0:12:38]} Bxf3 {[%emt 0:01:02]} 9. gxf3 {[%emt 0:00:07]} Bb4 {[%emt 0:03:11]} 10. Qc2 {[%emt 0:06:12]} Nxe5 {[%emt 0:00:36]} 11. Be2 {[%emt 0:00:14]} Nf6 {[%emt 0:02:35]} 12. a3 {[%emt 0:01:24]} Bxd2+ {[%emt 0:02:24]} 13. Bxd2 {[%emt 0:00:17]} Nd3+ {[%emt 0:02:44]} 14. Bxd3 {[%emt 0:01:39]} Qxd3 {[%emt 0:00:09]} 15. Qxd3 {[%emt 0:04:04]} Rxd3 {[%emt 0:00:06]} 16. Rc1 {[%emt 0:12:10]} Rhd8 {[%emt 0:00:43]} 17. Rc2 {[%emt 0:00:19]} Nd7 {[%emt 0:05:36]} 18. Ke2 {[%emt 0:01:27]} Ne5 {[%emt 0:01:00]} 19. Bc3 {[%emt 0:01:14]} f6 {[%emt 0:05:13]} 20. Rhc1 {[%emt 0:02:33]} Nc6 {[%emt 0:03:06]} 21. b4 {[%emt 0:12:30]} R8d7 {[%emt 0:01:08]} 22. b5 {[%emt 0:04:37]} Nd8 {[%emt 0:01:51]} 23. f4 {[%emt 0:04:30]} R3d5 {[%emt 0:01:21]} 24. a4 {[%emt 0:02:10]} Rh5 {[%emt 0:00:18]} 25. Rh1 {[%emt 0:05:04]} Nf7 {[%emt 0:02:06]} 26. Bd4 {[%emt 0:01:35]} Kb8 {[%emt 0:00:55]} 27. Kf3 {[%emt 0:00:54]} Nd6 {[%emt 0:02:22]} 28. Kg4 {[%emt 0:02:48]} Rd5 {[%emt 0:00:28]} 29. Rhc1 {[%emt 0:00:54]} h5+ {[%emt 0:01:00]} 30. Kf3 {[%emt 0:00:53]} Nf5 {[%emt 0:01:03]} 31. Bc3 {[%emt 0:02:50]} Rc5 {[%emt 0:01:42]} 32. Bb4 {[%emt 0:00:37]} Rxc2 {[%emt 0:00:36]} 33. Rxc2 {[%emt 0:00:06]} Rd1 {[%emt 0:00:56]} 34. Rd2 {[%emt 0:03:06]} Rxd2 {[%emt 0:00:18]} 35. Bxd2 {[%emt 0:00:06]} Kc8 {[%emt 0:00:22]} 36. Bc3 {[%emt 0:01:00]} Kd7 {[%emt 0:00:36]} 37. e4 {[%emt 0:00:24]} Ne7 {[%emt 0:01:19]} 38. f5 {[%emt 0:01:33]} c6 {[%emt 0:00:32]} 39. bxc6+ {[%emt 0:01:00]} Kxc6 {[%emt 0:01:13]} 40. Bb4 {[%emt 0:00:26]} Kd7 {[%emt 0:00:15]} 41. Bxe7 {[%emt 0:33:32]} Kxe7 {[%emt 0:30:11]} 42. Ke3 {[%emt 0:00:25]} b6 {[%emt 0:04:15]} 43. f4 {[%emt 0:00:29]} Kd6 {[%emt 0:05:10]} 44. Kd4 {[%emt 0:00:29]} a6 {[%emt 0:00:57]} 45. h4 {[%emt 0:00:00]} b5 {[%emt 0:00:00]} 46. axb5 {[%emt 0:00:00]} axb5 {[%emt 0:00:00]} 47. e5+ {[%emt 0:00:00]} fxe5+ {[%emt 0:00:00]} 48. fxe5+ {[%emt 0:00:00]} Kc6 {[%emt 0:00:00]} 49. Ke4 {[%emt 0:00:00]} b4 {[%emt 0:00:00]} 50. Kd4 {[%emt 0:00:00]} b3 {[%emt 0:00:00]} 51. Kc3 {[%emt 0:00:00]} Kd5 {[%emt 0:00:00]} 52. e6 {[%emt 0:00:00]} Kd6 {[%emt 0:00:00]} 53. Kxb3 {[%emt 0:00:00]} g6 {[%emt 0:00:00]} 54. fxg6 {[%emt 0:00:00]} Kxe6 {[%emt 0:00:00]} 55. Kc3 {[%emt 0:00:00]} Kf6 {[%emt 0:00:00]} 56. Kd4 {[%emt 0:00:00]} Kxg6 {[%emt 0:00:00]} 57. Ke4 1/2-1/2

[Event "Krakow Championship-B 2022"]
[Site "Krakow"]
[Date "2022.06.27"]
[Round "4.1"]
[White "Stemmler, Fabian"]
[Black "Skomial, Mateusz"]
[Result "0-1"]
[ECO "C31"]
[WhiteElo "2054"]
[BlackElo "2063"]
[Annotator "NA RC"]
[PlyCount "86"]
[EventDate "2022.06.25"]
[EventType "swiss"]
[EventCountry "POL"]
[SourceTitle "playchess.com"]
[Source "ChessBase"]
[SourceQuality "1"]
[TimeControl "40/5400+30:1800+30"]

1. e4 {[%emt 0:00:03]} e5 {[%emt 0:00:11]} 2. f4 {[%emt 0:00:39]} d5 {[%emt 0:00:37]} 3. exd5 {[%emt 0:00:16]} exf4 {[%emt 0:00:07]} 4. Nf3 {[%emt 0:00:07]} Bg4 {[%emt 0:09:46]} 5. Nc3 {[%emt 0:05:25]} Nf6 {[%emt 0:02:46]} 6. d4 {[%emt 0:02:43]} Nxd5 {[%emt 0:07:36]} 7. Nxd5 {[%emt 0:00:21]} Qxd5 {[%emt 0:00:15]} 8. Bxf4 {[%emt 0:00:03]} Bd6 {[%emt 0:05:42]} 9. Bxd6 {[%emt 0:06:40]} Qxd6 {[%emt 0:05:30]} 10. Qe2+ {[%emt 0:01:37]} Be6 {[%emt 0:03:44]} 11. O-O-O {[%emt 0:02:24]} O-O {[%emt 0:00:24]} 12. Qe5 {[%emt 0:10:23]} Rd8 {[%emt 0:08:50]} 13. Qxd6 {[%emt 0:09:43]} Rxd6 {[%emt 0:00:27]} 14. Ng5 {[%emt 0:04:48]} Bd5 {[%emt 0:12:32]} 15. c4 {[%emt 0:15:58]} h6 {[%emt 0:04:09]} 16. Nf3 {[%emt 0:06:53]} Bxf3 {[%emt 0:01:30]} 17. gxf3 {[%emt 0:00:02]} Nc6 {[%emt 0:00:58]} 18. d5 {[%emt 0:01:10]} Rad8 {[%emt 0:06:54]} 19. f4 {[%emt 0:14:20]} Ne7 {[%emt 0:00:33]} 20. Bg2 {[%emt 0:02:35]} Rf6 {[%emt 0:03:42]} 21. Rhe1 {[%emt 0:03:52]} Ng6 {[%emt 0:01:22]} 22. f5 {[%emt 0:01:07]} Rxf5 {[%emt 0:00:20]} 23. Be4 {[%emt 0:00:30]} Rf4 {[%emt 0:00:34]} 24. Bxg6 {[%emt 0:01:49]} fxg6 {[%emt 0:00:14]} 25. b3 {[%emt 0:00:31]} Kf7 {[%emt 0:00:34]} 26. Re2 {[%emt 0:03:06]} Re8 {[%emt 0:02:47]} 27. Rde1 {[%emt 0:00:43]} Rxe2 {[%emt 0:00:06]} 28. Rxe2 {[%emt 0:00:02]} g5 {[%emt 0:03:32]} 29. Kd2 {[%emt 0:01:12]} Rf3 {[%emt 0:01:19]} 30. Re3 {[%emt 0:03:17]} Rf2+ {[%emt 0:00:21]} 31. Re2 {[%emt 0:00:07]} Rxe2+ {[%emt 0:00:17]} 32. Kxe2 {[%emt 0:00:01]} Kf6 {[%emt 0:00:06]} 33. Ke3 {[%emt 0:01:09]} Ke5 {[%emt 0:00:05]} 34. Kf3 {[%emt 0:00:24]} Kd4 {[%emt 0:02:34]} 35. Kg4 {[%emt 0:00:38]} g6 {[%emt 0:00:06]} 36. h3 {[%emt 0:01:01]} b5 {[%emt 0:00:21]} 37. d6 {[%emt 0:01:25]} cxd6 {[%emt 0:00:05]} 38. cxb5 {[%emt 0:00:01]} Kc5 {[%emt 0:00:28]} 39. a4 {[%emt 0:00:13]} d5 {[%emt 0:00:09]} 40. Kf3 {[%emt 0:01:22]} h5 {[%emt 0:00:06]} 41. Kg3 {[%emt 0:03:06]} d4 {[%emt 0:00:00]} 42. Kf3 {[%emt 0:00:39]} g4+ {[%emt 0:00:00]} 43. hxg4 {[%emt 0:00:11]} h4 {[%emt 0:00:00]} 0-1

[Event "Krakow Championship-B 2022"]
[Site "Krakow"]
[Date "2022.06.27"]
[Round "4.2"]
[White "Malik, Maciej"]
[Black "Szczurek, Krzysztof"]
[Result "0-1"]
[ECO "B21"]
[WhiteElo "1984"]
[BlackElo "2151"]
[Annotator "RC"]
[PlyCount "82"]
[EventDate "2022.06.25"]
[EventType "swiss"]
[EventCountry "POL"]
[SourceTitle "playchess.com"]
[Source "ChessBase"]
[SourceQuality "1"]
[TimeControl "40/5400+30:1800+30"]

1. e4 {[%emt 0:00:19]} c5 {[%emt 0:00:04]} 2. d4 {[%emt 0:00:08]} cxd4 {[%emt 0:00:06]} 3. c3 {[%emt 0:00:04]} dxc3 {[%emt 0:00:08]} 4. Nxc3 {[%emt 0:00:06]} d6 {[%emt 0:00:39]} 5. Bc4 {[%emt 0:00:33]} e6 {[%emt 0:00:26]} 6. Nf3 {[%emt 0:00:32]} Be7 {[%emt 0:00:43]} 7. O-O {[%emt 0:02:06]} Nf6 {[%emt 0:00:12]} 8. Bf4 {[%emt 0:01:49]} O-O {[%emt 0:00:48]} 9. Qe2 {[%emt 0:02:43]} e5 {[%emt 0:07:38]} 10. Bg5 {[%emt 0:01:51]} Bg4 {[%emt 0:01:48]} 11. h3 {[%emt 0:07:07]} Bh5 {[%emt 0:02:22]} 12. Rad1 {[%emt 0:01:20]} Nc6 {[%emt 0:00:55]} 13. g4 {[%emt 0:17:04]} Bg6 {[%emt 0:01:20]} 14. Bxf6 {[%emt 0:00:44]} Bxf6 {[%emt 0:00:07]} 15. Qd2 {[%emt 0:00:25]} Be7 {[%emt 0:02:33]} 16. Rfe1 {[%emt 0:03:39]} Qd7 {[%emt 0:07:15]} 17. b4 {[%emt 0:14:31]} Rfc8 {[%emt 0:19:26]} 18. Bb3 {[%emt 0:03:34]} Qe8 {[%emt 0:05:31]} 19. Nd5 {[%emt 0:00:44]} Bf8 {[%emt 0:01:12]} 20. h4 {[%emt 0:06:22]} Qd7 {[%emt 0:10:03]} 21. Qg5 {[%emt 0:00:15]} Kh8 {[%emt 0:00:29]} 22. h5 {[%emt 0:01:07]} h6 {[%emt 0:00:06]} 23. Qh4 {[%emt 0:01:10]} Bh7 {[%emt 0:00:05]} 24. g5 {[%emt 0:05:05]} Be7 {[%emt 0:07:39]} 25. b5 {[%emt 0:06:01]} Nd4 {[%emt 0:01:55]} 26. Rxd4 {[%emt 0:11:29]} exd4 {[%emt 0:01:38]} 27. e5 {[%emt 0:02:55]} Bxg5 {[%emt 0:05:12]} 28. Qxd4 {[%emt 0:01:43]} Qf5 {[%emt 0:02:55]} 29. Kg2 {[%emt 0:00:09]} Rd8 {[%emt 0:02:56]} 30. exd6 {[%emt 0:02:26]} Rxd6 {[%emt 0:00:28]} 31. Re5 {[%emt 0:00:39]} Qd3 {[%emt 0:09:16]} 32. Qg4 {[%emt 0:02:58]} f6 {[%emt 0:04:33]} 33. Re1 {[%emt 0:00:10]} Rxd5 {[%emt 0:00:49]} 34. Rd1 {[%emt 0:00:12]} Qf5 {[%emt 0:00:06]} 35. Qxf5 {[%emt 0:01:10]} Rxf5 {[%emt 0:00:05]} 36. Rd7 {[%emt 0:00:29]} Rxb5 {[%emt 0:00:17]} 37. Nd4 {[%emt 0:00:05]} Rb6 {[%emt 0:00:45]} 38. Kg3 {[%emt 0:00:29]} f5 {[%emt 0:00:20]} 39. f4 {[%emt 0:00:41]} Bf6 {[%emt 0:00:11]} 40. Nf3 {[%emt 0:00:14]} Bg8 {[%emt 0:00:10]} 41. Bc2 {[%emt 0:30:05]} Rd8 {[%emt 0:30:32]} 0-1

[Event "Krakow Championship-B 2022"]
[Site "Krakow"]
[Date "2022.06.27"]
[Round "4.3"]
[White "Owoc, Jakub"]
[Black "Duncan, Patrick C M"]
[Result "1-0"]
[ECO "B13"]
[WhiteElo "1741"]
[BlackElo "2013"]
[Annotator "NA RC"]
[PlyCount "93"]
[EventDate "2022.06.25"]
[EventType "swiss"]
[EventCountry "POL"]
[SourceTitle "playchess.com"]
[Source "ChessBase"]
[SourceQuality "1"]
[TimeControl "40/5400+30:1800+30"]

1. e4 {[%emt 0:00:03]} c6 {[%emt 0:00:05]} 2. d4 d5 {[%emt 0:00:05]} 3. exd5 {[%emt 0:00:14]} cxd5 {[%emt 0:00:06]} 4. Bd3 {[%emt 0:00:06]} Nc6 {[%emt 0:00:14]} 5. c3 {[%emt 0:00:06]} Nf6 {[%emt 0:00:11]} 6. h3 {[%emt 0:00:06]} g6 {[%emt 0:00:37]} 7. Bf4 {[%emt 0:01:27]} Bf5 {[%emt 0:02:05]} 8. Be2 {[%emt 0:00:06]} Bg7 {[%emt 0:02:29]} 9. Nd2 {[%emt 0:03:03]} h5 {[%emt 0:11:36]} 10. Ngf3 {[%emt 0:03:40]} O-O {[%emt 0:02:17]} 11. O-O {[%emt 0:02:51]} a6 {[%emt 0:07:10]} 12. Nh4 {[%emt 0:13:23]} Qd7 {[%emt 0:07:31]} 13. Nb3 {[%emt 0:04:35]} b6 {[%emt 0:05:35]} 14. Nxf5 {[%emt 0:06:05]} Qxf5 {[%emt 0:00:24]} 15. Bc7 {[%emt 0:00:04]} b5 {[%emt 0:05:38]} 16. Bd3 {[%emt 0:01:59]} Qc8 {[%emt 0:02:08]} 17. Bh2 {[%emt 0:00:12]} Nd7 {[%emt 0:02:03]} 18. f4 {[%emt 0:00:34]} f5 {[%emt 0:04:42]} 19. Qe2 {[%emt 0:19:15]} Nf6 {[%emt 0:01:06]} 20. a4 {[%emt 0:03:03]} b4 {[%emt 0:08:05]} 21. Nc5 {[%emt 0:00:15]} bxc3 {[%emt 0:05:48]} 22. bxc3 {[%emt 0:00:07]} Ne4 {[%emt 0:02:40]} 23. Bxe4 {[%emt 0:05:09]} dxe4 {[%emt 0:07:52]} 24. Kh1 {[%emt 0:00:14]} a5 {[%emt 0:10:02]} 25. Rab1 {[%emt 0:00:15]} Nb8 {[%emt 0:03:48]} 26. Rb5 {[%emt 0:07:12]} Nd7 {[%emt 0:02:02]} 27. Rfb1 {[%emt 0:01:19]} Nxc5 {[%emt 0:00:37]} 28. Rxc5 {[%emt 0:00:05]} Qd7 {[%emt 0:01:43]} 29. Qc4+ {[%emt 0:01:54]} Kh7 {[%emt 0:00:35]} 30. Rc7 {[%emt 0:00:08]} Qd6 {[%emt 0:02:46]} 31. Rc6 {[%emt 0:03:57]} Qd7 {[%emt 0:00:12]} 32. Rb5 {[%emt 0:01:20]} Bf6 {[%emt 0:00:37]} 33. Bg1 {[%emt 0:01:48]} Kg7 {[%emt 0:01:26]} 34. d5 {[%emt 0:01:01]} Rfc8 {[%emt 0:00:34]} 35. Rbc5 {[%emt 0:06:04]} Rcb8 {[%emt 0:00:10]} 36. d6 {[%emt 0:01:54]} Kh6 {[%emt 0:01:34]} 37. Rd5 {[%emt 0:02:22]} e6 {[%emt 0:00:24]} 38. Rb5 {[%emt 0:01:47]} Rxb5 {[%emt 0:01:14]} 39. Qxb5 {[%emt 0:00:11]} Bxc3 {[%emt 0:00:44]} 40. Rxc3 {[%emt 0:02:30]} Qxd6 {[%emt 0:00:10]} 41. Rc6 {[%emt 0:36:15]} Qxf4 {[%emt 0:31:07]} 42. Rxe6 {[%emt 0:00:47]} Rb8 {[%emt 0:00:00]} 43. Be3 {[%emt 0:00:00]} Qxe3 {[%emt 0:00:00]} 44. Qxb8 {[%emt 0:00:00]} f4 {[%emt 0:00:00]} 45. Qh8+ {[%emt 0:00:00]} Kg5 {[%emt 0:00:00]} 46. Qf6+ {[%emt 0:00:00]} Kh6 {[%emt 0:00:00]} 47. Qxg6# {[%emt 0:00:00]} 1-0

[Event "Krakow Championship-B 2022"]
[Site "Krakow"]
[Date "2022.06.27"]
[Round "4.4"]
[White "Khandhar, Kaushal"]
[Black "Budkiewicz, Magdalena"]
[Result "1-0"]
[ECO "E68"]
[WhiteElo "1936"]
[BlackElo "1916"]
[Annotator "NA RC"]
[PlyCount "129"]
[EventDate "2022.06.25"]
[EventType "swiss"]
[EventCountry "POL"]
[SourceTitle "playchess.com"]
[Source "ChessBase"]
[SourceQuality "1"]
[TimeControl "40/5400+30:1800+30"]

1. d4 {[%emt 0:06:22]} Nf6 {[%emt 0:00:21]} 2. c4 {[%emt 0:00:22]} g6 {[%emt 0:00:21]} 3. Nf3 {[%emt 0:00:06]} Bg7 {[%emt 0:00:31]} 4. g3 {[%emt 0:00:08]} O-O {[%emt 0:00:43]} 5. Bg2 {[%emt 0:00:05]} d6 {[%emt 0:00:20]} 6. O-O {[%emt 0:00:16]} Nbd7 {[%emt 0:00:34]} 7. Nc3 {[%emt 0:00:14]} e5 {[%emt 0:00:29]} 8. e4 {[%emt 0:00:29]} exd4 {[%emt 0:05:29]} 9. Nxd4 {[%emt 0:00:17]} a5 {[%emt 0:00:29]} 10. h3 {[%emt 0:00:43]} Nc5 {[%emt 0:00:15]} 11. Be3 {[%emt 0:08:51]} Re8 {[%emt 0:01:46]} 12. Qc2 {[%emt 0:00:56]} Bd7 {[%emt 0:02:21]} 13. Rad1 {[%emt 0:07:09]} Qc8 {[%emt 0:13:55]} 14. Kh2 {[%emt 0:01:15]} h5 {[%emt 0:00:29]} 15. Rfe1 {[%emt 0:02:03]} Ne6 {[%emt 0:30:27]} 16. Nxe6 {[%emt 0:12:03]} Bxe6 {[%emt 0:00:17]} 17. c5 {[%emt 0:00:11]} dxc5 {[%emt 0:02:30]} 18. Bxc5 {[%emt 0:07:41]} Rd8 {[%emt 0:05:49]} 19. f4 {[%emt 0:04:49]} c6 {[%emt 0:07:03]} 20. Bb6 {[%emt 0:14:29]} Rxd1 {[%emt 0:01:22]} 21. Rxd1 {[%emt 0:00:29]} Qe8 {[%emt 0:02:49]} 22. e5 {[%emt 0:08:44]} Nd7 {[%emt 0:01:05]} 23. Bg1 {[%emt 0:00:54]} Rd8 {[%emt 0:03:59]} 24. Qa4 {[%emt 0:04:00]} Nf8 {[%emt 0:01:49]} 25. Qxa5 {[%emt 0:06:36]} Rxd1 {[%emt 0:00:26]} 26. Nxd1 {[%emt 0:00:05]} Qd7 {[%emt 0:00:27]} 27. Nc3 {[%emt 0:05:19]} Qd2 {[%emt 0:04:35]} 28. Qb6 {[%emt 0:00:04]} h4 {[%emt 0:01:00]} 29. Qf2 {[%emt 0:00:26]} hxg3+ {[%emt 0:01:20]} 30. Kxg3 {[%emt 0:00:12]} Qd3+ {[%emt 0:01:47]} 31. Qe3 {[%emt 0:02:05]} Qc2 {[%emt 0:01:23]} 32. Qe2 {[%emt 0:06:02]} Qxe2 {[%emt 0:01:12]} 33. Nxe2 {[%emt 0:00:01]} Bxa2 {[%emt 0:00:06]} 34. Nc3 {[%emt 0:00:03]} Bc4 {[%emt 0:00:43]} 35. Ne4 {[%emt 0:00:02]} Ne6 {[%emt 0:01:37]} 36. h4 {[%emt 0:02:32]} Kf8 {[%emt 0:01:04]} 37. Bf3 {[%emt 0:01:39]} Ke7 {[%emt 0:00:56]} 38. h5 {[%emt 0:00:37]} Bh6 {[%emt 0:05:48]} 39. Be3 {[%emt 0:00:26]} gxh5 {[%emt 0:00:44]} 40. Bxh5 {[%emt 0:00:09]} Ng7 {[%emt 0:00:32]} 41. Bg4 {[%emt 0:30:52]} Ne8 {[%emt 0:11:27]} 42. Bc5+ {[%emt 0:00:00]} Kd8 {[%emt 0:00:09]} 43. Bb6+ {[%emt 0:00:00]} Ke7 {[%emt 0:01:33]} 44. f5 {[%emt 0:00:00]} f6 {[%emt 0:08:20]} 45. exf6+ {[%emt 0:00:00]} Kd7 {[%emt 0:01:55]} 46. Bh5 {[%emt 0:00:00]} Nd6 {[%emt 0:00:42]} 47. Nc5+ {[%emt 0:01:23]} Kc8 {[%emt 0:00:28]} 48. Bg4 {[%emt 0:01:54]} Bg5 {[%emt 0:00:54]} 49. f7 {[%emt 0:00:58]} Nxf7 {[%emt 0:02:29]} 50. f6+ {[%emt 0:00:27]} Kb8 {[%emt 0:00:07]} 51. Nd7+ {[%emt 0:00:16]} Ka8 {[%emt 0:00:23]} 52. Bc7 {[%emt 0:00:55]} b5 {[%emt 0:01:19]} 53. Bf4 {[%emt 0:00:38]} Bxf4+ {[%emt 0:02:20]} 54. Kxf4 {[%emt 0:00:02]} Kb7 {[%emt 0:00:13]} 55. Ne5 {[%emt 0:00:44]} Nxe5 {[%emt 0:02:00]} 56. Kxe5 {[%emt 0:00:01]} Bf7 {[%emt 0:00:08]} 57. Be6 {[%emt 0:00:09]} Bh5 {[%emt 0:00:16]} 58. f7 {[%emt 0:00:22]} Bxf7 {[%emt 0:00:05]} 59. Bxf7 {[%emt 0:00:04]} Kb6 {[%emt 0:00:50]} 60. Kd4 {[%emt 0:01:52]} c5+ {[%emt 0:00:17]} 61. Kd5 {[%emt 0:00:40]} c4 {[%emt 0:00:35]} 62. Bg6 {[%emt 0:00:14]} Ka5 {[%emt 0:00:32]} 63. Kc5 {[%emt 0:00:10]} Ka4 {[%emt 0:00:31]} 64. Bc2+ {[%emt 0:00:03]} Ka5 {[%emt 0:00:09]} 65. Bd1 {[%emt 0:00:04]} 1-0

[Event "Krakow Championship-B 2022"]
[Site "Krakow"]
[Date "2022.06.27"]
[Round "4.5"]
[White "Czaplak, Lukasz"]
[Black "Zamekhovskiy, Yevgen"]
[Result "1/2-1/2"]
[ECO "A49"]
[WhiteElo "1905"]
[BlackElo "1926"]
[Annotator "NA RC"]
[PlyCount "65"]
[EventDate "2022.06.25"]
[EventType "swiss"]
[EventCountry "POL"]
[SourceTitle "playchess.com"]
[Source "ChessBase"]
[SourceQuality "1"]
[TimeControl "40/5400+30:1800+30"]

1. d4 {[%emt 0:00:01]} Nf6 {[%emt 0:00:10]} 2. Nf3 {[%emt 0:00:05]} g6 {[%emt 0:00:08]} 3. g3 {[%emt 0:00:04]} Bg7 {[%emt 0:00:04]} 4. Bg2 {[%emt 0:00:03]} O-O {[%emt 0:00:08]} 5. O-O {[%emt 0:00:03]} d6 {[%emt 0:00:06]} 6. b3 {[%emt 0:00:10]} e5 {[%emt 0:01:27]} 7. dxe5 {[%emt 0:00:06]} Nfd7 {[%emt 0:00:09]} 8. Bb2 {[%emt 0:04:28]} Nc6 {[%emt 0:02:32]} 9. Qc1 {[%emt 0:02:49]} dxe5 {[%emt 0:05:01]} 10. Rd1 {[%emt 0:11:28]} Re8 {[%emt 0:03:36]} 11. e4 {[%emt 0:01:13]} Qf6 {[%emt 0:08:30]} 12. Nc3 {[%emt 0:04:41]} Nb6 {[%emt 0:00:24]} 13. Nd5 {[%emt 0:07:47]} Nxd5 {[%emt 0:00:27]} 14. exd5 {[%emt 0:01:47]} Bg4 {[%emt 0:00:24]} 15. dxc6 {[%emt 0:01:27]} Bxf3 {[%emt 0:00:28]} 16. Bxf3 {[%emt 0:04:16]} Qxf3 {[%emt 0:00:28]} 17. cxb7 {[%emt 0:00:13]} Qxb7 {[%emt 0:00:35]} 18. Qe3 {[%emt 0:06:14]} Qc6 {[%emt 0:17:43]} 19. Qc3 {[%emt 0:06:23]} Qe6 {[%emt 0:08:38]} 20. Qc5 {[%emt 0:05:11]} h5 {[%emt 0:15:49]} 21. h4 {[%emt 0:07:35]} Qf5 {[%emt 0:06:18]} 22. Qc6 {[%emt 0:08:17]} Rad8 {[%emt 0:02:31]} 23. Qc4 {[%emt 0:07:10]} Qf3 {[%emt 0:03:14]} 24. Rxd8 {[%emt 0:02:09]} Rxd8 {[%emt 0:00:01]} 25. Qxc7 {[%emt 0:00:16]} Rd2 {[%emt 0:00:58]} 26. Rf1 {[%emt 0:01:46]} Qe2 {[%emt 0:03:34]} 27. Qxa7 {[%emt 0:01:13]} Rxc2 {[%emt 0:00:11]} 28. Bc1 {[%emt 0:00:43]} Rxa2 {[%emt 0:02:42]} 29. Qb8+ {[%emt 0:00:06]} Kh7 {[%emt 0:00:32]} 30. Be3 {[%emt 0:00:47]} f5 {[%emt 0:04:29]} 31. Qb7 {[%emt 0:01:50]} Qg4 {[%emt 0:00:58]} 32. Bg5 {[%emt 0:01:18]} Qd4 {[%emt 0:00:53]} 33. Be3 {[%emt 0:01:15]} 1/2-1/2